Cogmind - Beta 12 @@@ ROGUE MODE // 2023.11.02 @ 22:57:35 Player: FrostySpirit Result: Destroyed by H-61 Shepherd with Heavy Assault Cannon Performance ------------- Evolutions (2) 1000 Regions Visited (5) 1000 Robots Destroyed (5) 25 Value Destroyed (91) 91 Prototype IDs (1) 20 Alien Tech Used (0) 0 Bonus (300) 300 TOTAL SCORE: 2436 Bonus ------- Aligned with FarCom 300 Cogmind --------- Core Integrity 0/550 Matter 219/300 Energy 100/100 System Corruption 0% Temperature Cool (0) Movement Core (50) Location -8/Materials Parts ------- > --- POWER (1) -------- (None) > --- PROPULSION (4) --- (None) > --- UTILITY (4) ------ (None) > --- WEAPON (2) ------- (None) > --- INVENTORY (5) ---- Cloak of Protection Small Laser Light Assault Rifle Mining Laser Heavy Flail Peak State ------------ > --- POWER ------------ Ion Engine > --- PROPULSION ------- Aluminum Leg Aluminum Leg > --- UTILITY ---------- Small Storage Unit Cloak of Protection > --- WEAPON ----------- Mining Laser Mining Laser > --- INVENTORY -------- Ion Engine Small Storage Unit EM Pulse Gun Small Laser Light Assault Rifle [Rating: 14] Favorites ----------- Power Ion Engine Engine Ion Engine Propulsion Aluminum Leg Leg Aluminum Leg Utility Small Storage Unit Device Seismic Detector Storage Small Storage Unit Weapon Mining Laser Energy Gun Small Laser Ballistic Gun Light Assault Rifle Special Weapon Mining Laser Build | -11 -10 -10 -10 -9 -8 ------- Run | Jun Mat Min Exi Min Mat Slots Evolved 4 | . . . . . 4 Power . | . . . . . . Propulsion 2 | . . . . . 2 Utility 2 | . . . . . 2 Weapon . | . . . . . . Parts Attached 18 | 10 1 . 5 2 . Power 1 | 1 . . . . . Engine 1 | 1 . . . . . Core . | . . . . . . Reactor . | . . . . . . Propulsion 5 | 2 . . 2 1 . Treads . | . . . . . . Leg 5 | 2 . . 2 1 . Wheel . | . . . . . . Hover . | . . . . . . Flight . | . . . . . . Utility 6 | 3 . . 3 . . Device 4 | 2 . . 2 . . Storage 2 | 1 . . 1 . . Processor . | . . . . . . Hackware . | . . . . . . Protection . | . . . . . . Artifact . | . . . . . . Weapon 6 | 4 1 . . 1 . Energy Gun 2 | 1 . . . 1 . Energy Cannon . | . . . . . . Ballistic Gun 1 | 1 . . . . . Ballistic Cannon . | . . . . . . Launcher . | . . . . . . Special Weapon 3 | 2 1 . . . . Impact Weapon . | . . . . . . Slashing Weapon . | . . . . . . Piercing Weapon . | . . . . . . Special Melee Weapon . | . . . . . . Unidentified Prototypes 1 | . . . 1 . . Parts Lost 9 | . 3 . . . 6 Power 1 | . . . . . 1 Propulsion 2 | . . . . . 2 Utility 3 | . 2 . . . 1 Weapon 3 | . 1 . . . 2 Highest Loss Streak 6 | . 3 . . . 6 To Critical Strikes . | . . . . . . Average Slot Usage (%) 75 | . 77 71 77 91 46 Engine 13 | . 14 14 14 14 7 Leg 26 | . 28 28 25 28 15 Device 7 | . 11 . 6 5 . Storage 3 | . . . 1 14 9 Energy Gun 1 | . . . . 8 8 Special Weapon 23 | . 22 28 28 19 7 Naked Turns . | . . . . . . Heaviest Build 20 | 13 9 7 20 20 13 Greatest Support 20 | 20 20 20 20 20 20 Greatest Overweight (x) 4 | 3 . . 4 . 2 Average Overweight (x) . | . . . . . . Largest Inventory Capacity 8 | 8 5 5 8 8 8 Average Capacity 5 | 6 5 5 5 8 8 Most Carried 7 | 5 5 5 5 7 7 Average Carried 4 | 3 5 5 5 5 6 Final Capacity 8 | 5 5 5 8 8 5 Final Carried 6 | 5 5 5 5 6 5 Class Distribution -------------------- 67% | Mutant 32% | Scavenger-Mutant Dominant Class ---------------- Mutant | -10/Materials Mutant | -10/Mines Mutant | -10/Exiles Mutant | -9/Mines Mutant | -8/Materials Resources | -11 -10 -10 -10 -9 -8 ----------- Run | Jun Mat Min Exi Min Mat Matter Collected 299 | 223 . . . 76 . Remotely . | . . . . . . Salvage Created 111 | 51 . . . 60 . Parts 16 | 10 . . . 6 . Haulers Intercepted . | . . . . . . Recyclers Shooed 1 | . . . . 1 . Parts Field Recycled . | . . . . . . Retrieved Matter . | . . . . . . Parts Self-Destructed . | . . . . . . Prevented . | . . . . . . Kills | -11 -10 -10 -10 -9 -8 ------- Run | Jun Mat Min Exi Min Mat Combat Hostiles Destroyed 2 | . . . . 2 . Cannons 2 | . . . . 2 . Classes Destroyed 3 | 1 . . . 2 . Tunneler 3 | 3 . . . . . Grunt 1 | . . . . 1 . Brawler 1 | . . . . 1 . Best Kill Streak 2 | 1 . . . 2 . Combat Bots Only 2 | . . . . 2 . Max Kills in Single Turn 1 | 1 . . . 1 . Gunslinging . | . . . . . . Exploded . | . . . . . . Melee . | . . . . . . Uniques/NPCs Destroyed . | . . . . . . Combat | -11 -10 -10 -10 -9 -8 -------- Run | Jun Mat Min Exi Min Mat Damage Taken 1363 | 21 297 . . 109 936 Core 610 | 12 . . . 22 576 Absorbed by Shields . | . . . . . . Core Remaining (%) 90 | 95 . . . 86 . Volleys Fired 31 | 10 16 . . 5 . Largest 2 | 2 2 . . 2 . Hottest 200 | 200 200 . . 200 . Shots Fired 53 | 20 23 . . 10 . Gun 14 | 12 . . . 2 . Cannon . | . . . . . . Launcher . | . . . . . . Special 39 | 8 23 . . 8 . Kinetic 6 | 6 . . . . . Thermal 45 | 14 23 . . 8 . Explosive . | . . . . . . Electromagnetic 2 | . . . . 2 . Robot Hit Streak 4 | 4 2 . . 4 . Robot Miss Streak 1 | 1 . . . 1 . Penetration Max . | . . . . . . Secondary Targets . | . . . . . . Shots Hit Robots 11 | 7 1 . . 3 . Core Hits 5 | 3 . . . 2 . Critical Kills . | . . . . . . Critical Parts Destroyed . | . . . . . . Critical Strikes . | . . . . . . Melee Attacks . | . . . . . . Impact . | . . . . . . Slashing . | . . . . . . Piercing . | . . . . . . Sneak Attacks . | . . . . . . Combat Hostiles . | . . . . . . Follow-up Attacks . | . . . . . . Damage Inflicted 187 | 79 24 . . 76 8 Guns 94 | 70 . . . 24 . Cannons . | . . . . . . Explosions . | . . . . . . Melee . | . . . . . . Ramming 21 | 9 . . . 4 8 Kinetic 26 | 26 . . . . . Thermal 116 | 44 24 . . 48 . Explosive . | . . . . . . Electromagnetic 24 | . . . . 24 . Impact . | . . . . . . Slashing . | . . . . . . Piercing . | . . . . . . Highest Corruption 9 | 1 9 9 9 9 . Average Corruption 7 | 1 5 9 9 9 . Corruption Purged . | . . . . . . Corruption Blocked . | . . . . . . Effects 23 | . 7 1 11 4 . Message Errors 9 | . 4 1 3 1 . Matter Fused 6 | . 1 . 4 1 . Heat Flow Errors 4 | . 1 . 2 1 . Energy Discharges 2 | . . . 1 1 . Data Loss (minor) 2 | . 1 . 1 . . Overload Shots . | . . . . . . Overflow Damage . | . . . . . . Projectiles . | . . . . . . Explosions . | . . . . . . Melee . | . . . . . . Knockbacks . | . . . . . . Impact . | . . . . . . Kinetic . | . . . . . . Secondary . | . . . . . . Self-Inflicted Damage 13 | 9 . . . . 4 Shots . | . . . . . . Rammed 1 | . . . . . 1 Targets Rammed 2 | . . . . 1 1 Kicked 1 | . . . . 1 . Crushed . | . . . . . . Highest Temperature 274 | 94 198 . 274 268 . Average Temperature 80 | 32 80 . 135 98 . Received Heat Transfer 213 | . . . . 60 153 Siege Activations . | . . . . . . Robots Corrupted . | . . . . . . Combat Hostiles . | . . . . . . Parts Fried . | . . . . . . Impact Corruptions . | . . . . . . Robots Melted . | . . . . . . Combat Hostiles . | . . . . . . Parts Melted . | . . . . . . Heat Transferred 250 | 100 50 . . 100 . Parts Sabotaged . | . . . . . . Parts Stolen . | . . . . . . Parts Stripped . | . . . . . . Power Chain Reactions . | . . . . . . Missiles Intercepted . | . . . . . . Alert | -11 -10 -10 -10 -9 -8 ------- Run | Jun Mat Min Exi Min Mat Peak Influence 52 | 15 23 8 . 52 43 Initial 20 | . 9 8 . . 20 Average 15 | 10 15 8 . 28 19 Maximum Alert Level . | . . . . . . Low Security (%) 100 | 100 100 100 . 100 100 Level 1 . | . . . . . . Level 2 . | . . . . . . Level 3 . | . . . . . . Level 4 . | . . . . . . Level 5 . | . . . . . . High Security . | . . . . . . Max Security . | . . . . . . Squads Dispatched 2 | . 1 . . . 1 Investigation 1 | . 1 . . . . Extermination . | . . . . . . Reinforcement 1 | . . . . . 1 Assault . | . . . . . . Garrison . | . . . . . . Intercept . | . . . . . . Searches Triggered . | . . . . . . Construction Impeded . | . . . . . . Haulers Reinforced . | . . . . . . Active Scanning Responses . | . . . . . . Cargo Convoy Interrupts . | . . . . . . Stealth | -11 -10 -10 -10 -9 -8 --------- Run | Jun Mat Min Exi Min Mat Distress Signals . | . . . . . . Communications Jammed . | . . . . . . Distress Signals . | . . . . . . Times Spotted 8 | . 2 . . 3 3 Peak Tracking Total 3 | . 2 . . 3 3 Tactical Retreats . | . . . . . . Traps | -11 -10 -10 -10 -9 -8 ------- Run | Jun Mat Min Exi Min Mat Traps Triggered 1 | . 1 . . . . Indirectly . | . . . . . . Trap Hack Attempts . | . . . . . . Triggered . | . . . . . . Disarmed . | . . . . . . Reprogrammed . | . . . . . . Reused . | . . . . . . Traps Extracted . | . . . . . . Installed . | . . . . . . Triggered . | . . . . . . Machines | -11 -10 -10 -10 -9 -8 ---------- Run | Jun Mat Min Exi Min Mat Machines Disabled . | . . . . . . Max in Single Turn . | . . . . . . Machines Repaired . | . . . . . . Machines Sabotaged . | . . . . . . Overloaded Fab Kills . | . . . . . . Hacking | -11 -10 -10 -10 -9 -8 --------- Run | Jun Mat Min Exi Min Mat Machines Accessed 6 | . 2 . 2 . 2 Terminals 4 | . 2 . . . 2 Fabricators . | . . . . . . Repair Stations . | . . . . . . Recycling Units . | . . . . . . Scanalyzers . | . . . . . . Garrison Access . | . . . . . . Total Hacks 14 | . 6 . 3 . 5 Successful 6 | . 1 . 3 . 2 Failed 8 | . 5 . . . 3 Catastrophic 4 | . 2 . . . 2 Database Lockouts . | . . . . . . Manual 9 | . 4 . 1 . 4 Terminals 11 | . 6 . . . 5 Fabricators . | . . . . . . Repair Stations . | . . . . . . Recycling Units . | . . . . . . Scanalyzers . | . . . . . . Garrison Access . | . . . . . . Terminal Hacks 6 | . 1 . 3 . 2 Record 3 | . . . 3 . . Part Schematic 1 | . . . . . 1 Fabricator Index 1 | . . . . . 1 Zone Layout 1 | . 1 . . . . Fabricator Hacks . | . . . . . . Repair Station Hacks . | . . . . . . Recycling Unit Hacks . | . . . . . . Scanalyzer . | . . . . . . Garrison Access Hacks . | . . . . . . Unauthorized Hacks . | . . . . . . Terminals . | . . . . . . Fabricators . | . . . . . . Repair Stations . | . . . . . . Recycling Units . | . . . . . . Scanalyzers . | . . . . . . Garrison Access . | . . . . . . Data Cores Recovered . | . . . . . . Used . | . . . . . . Hacking Detections 3 | . 2 . . . 1 Full Trace Events 1 | . 1 . . . . Feedback Events . | . . . . . . Feedback Blocked . | . . . . . . Robot Schematics Acquired . | . . . . . . Robots Built . | . . . . . . Authchips . | . . . . . . Time . | . . . . . . Total Robot Build Rating . | . . . . . . Part Schematics Acquired 1 | . . . . . 1 Parts Built . | . . . . . . Authchips . | . . . . . . Time . | . . . . . . Total Part Build Rating . | . . . . . . Parts Repaired . | . . . . . . Time . | . . . . . . Parts Recycled . | . . . . . . Recycled Matter . | . . . . . . Retrieved Matter . | . . . . . . Retrieved Components . | . . . . . . Parts Scanalyzed . | . . . . . . Part Schematics Acquired . | . . . . . . Parts Damaged . | . . . . . . Bothacking | -11 -10 -10 -10 -9 -8 ------------ Run | Jun Mat Min Exi Min Mat Used RIF Installer . | . . . . . . Robots Hacked . | . . . . . . Non-combat . | . . . . . . Combat . | . . . . . . Robot Hacks Applied . | . . . . . . Relay Couplers Released . | . . . . . . Fabnet Peak Effective % . | . . . . . . Robots Rewired . | . . . . . . Allies Hacked . | . . . . . . Hacks Repelled . | . . . . . . Allies | -11 -10 -10 -10 -9 -8 -------- Run | Jun Mat Min Exi Min Mat Total Allies . | . . . . . . Largest Group . | . . . . . . Highest-Rated Group . | . . . . . . Highest-Rated Ally . | . . . . . . Total Orders . | . . . . . . Ally Attacks . | . . . . . . Total Damage . | . . . . . . Kills . | . . . . . . Allies Corrupted . | . . . . . . Allies Melted . | . . . . . . Intel | -11 -10 -10 -10 -9 -8 ------- Run | Jun Mat Min Exi Min Mat Robot Analysis Total . | . . . . . . Derelict Logs Recovered . | . . . . . . Drone Launches . | . . . . . . Drone Recoveries . | . . . . . . Exploration | -11 -10 -10 -10 -9 -8 ------------- Run | Jun Mat Min Exi Min Mat Turns Passed 1366 | 306 365 59 413 124 99 Spaces Moved 895 | 167 192 50 331 74 81 Core 40 | 12 . . 13 . 15 Treads . | . . . . . . Legs 855 | 155 192 50 318 74 66 Wheels . | . . . . . . Hover . | . . . . . . Flight . | . . . . . . Fastest Speed 50 | 50 120 120 120 120 100 Average Speed 121 | 125 120 120 122 120 119 Slowest Speed 250 | 200 120 120 250 120 190 Overloaded Moves . | . . . . . . Propulsion Burnouts . | . . . . . . Robots Hopped . | . . . . . . Cave-ins Triggered 1 | . 1 . . . . Exploration Rate (%) 22 | 9 22 10 62 24 10 Regions Visited 5 Branch Regions 3 Pre-discovered Areas . | . . . . . . Known Exits Taken . | . . . . . . Unknown Exits Taken 5 | 1 1 1 1 1 . Scrap Searched 1 | . . . . 1 . Spaces Dug 33 | 6 22 . . 5 . Terrain Destroyed 33 | 6 22 . . 5 . Melee . | . . . . . . Projectile 33 | 6 22 . . 5 . AOE . | . . . . . . Terrain Rammed 1 | 1 . . . . . Walls Destroyed . | . . . . . . Machines Disabled . | . . . . . . Actions | -11 -10 -10 -10 -9 -8 --------- Run | Jun Mat Min Exi Min Mat Total 1036 | 226 257 49 338 83 83 Wait 77 | 28 49 . . . . Move 890 | 166 191 49 330 73 81 Hop . | . . . . . . Pick Up 9 | 8 . . . . 1 Fast Attach 13 | 7 1 . 5 . . Attach 3 | 3 . . . . . Detach 1 | . . . . 1 . Swap 2 | . . . . 2 . Drop 7 | 3 . . 3 1 . Fire 31 | 10 16 . . 5 . Melee . | . . . . . . Ram 2 | 1 . . . . 1 Kick 1 | . . . . 1 . Crush . | . . . . . . Escape Stasis . | . . . . . . Rewire . | . . . . . . Trap . | . . . . . . Miscellaneous . | . . . . . . Route ------- -11/Junkyard -10/Materials -10/Mines -10/Exiles (discovered 2 exits: [*Min x2]) -9/Mines -8/Materials History --------- Turn | Location | Event 24 | -11/Junkyard | Discovered new exit (range 14) 307 | -11/Junkyard | Entered Materials 308 | -10/Materials | Build established: Scavenger-Mutant 459 | -10/Materials | Crushed by falling debris 490 | -10/Materials | Lost 3 parts (2u1w) 587 | -10/Materials | Discovered new exit (range 8) 672 | -10/Materials | Entered Mines 673 | -10/Mines | Met a Derelict bent on vengeance 724 | -10/Mines | Deemed a non-threat by the Exiles lab entrance 725 | -10/Mines | Discovered new exit (range 5) 731 | -10/Mines | Entered Exiles 757 | -10/Exiles | Build established: Mutant 757 | -10/Exiles | Discovered new exit (range 15) 776 | -10/Exiles | Met 8R-AWN 800 | -10/Exiles | Met EX-HEX 862 | -10/Exiles | Met EX-BIN 880 | -10/Exiles | Aligned with FarCom system 881 | -10/Exiles | Given EX-Vault access code 922 | -10/Exiles | Opened EX-Vault 933 | -10/Exiles | Found Prototype Device 933 | -10/Exiles | Identified Cloak of Protection 1005 | -10/Exiles | Warned to stay clear of 0b10 Research branches 1043 | -10/Exiles | Met EX-DEC 1121 | -10/Exiles | Discovered new exit (range 14) 1144 | -10/Exiles | Left Exiles lab with Cloak of Protection 1144 | -10/Exiles | Entered Mines 1263 | -9/Mines | Discovered new exit (range 4) 1268 | -9/Mines | Entered Materials 1268 | -8/Materials | Evolved 4 slots: Propulsion x2, Utility x2 1359 | -8/Materials | Core integrity fell below 50% 1366 | -8/Materials | Core integrity fell below 20% 1367 | -8/Materials | Destroyed by H-61 Shepherd with Heavy Assault Cannon Last Messages --------------- 01350_ Aluminum Leg destroyed. 01350_ Knocked back. 01350_ Penetrated by Slug. 01350_ Critical hit (Burn: +37). 01351_ EM Pulse Gun destroyed. 01352_ Knocked back. 01353_ Slug penetrates H-61 Shepherd. 01353_ Critical hit (Burn: +37). 01354_ Penetrated by Slug. 01358_ K-01 Serf cleans the Electrolysis Chamber. 01358_ Penetrated by Slug. 01358_ Knocked back. 01362_ Slammed into X-62 Marksman. 01363_ Slug penetrates Electrolysis Chamber. 01363_ Electrolysis Chamber disabled. 01364_ Slug penetrates Wall. 01365_ Knocked back. 01365_ K-01 Serf cleans the Electrolysis Chamber. 01367_ Sml. Storage Unit destroyed. 01367_ Critical hit (Blast). Map ----- +----------------------------------------------------+ | | | | | | | | | | | | | | | | | | | | | | | | | | | | | | | | | | | | | | | ??????????????????###########?????????????????? | | ???????????????# #?????????????????? | | ???????????????# """ !! #?????????????????? | | ???????????????? """ !! #?????????????????? | | ??????????????????""" !/ ???????????????????? | | ???????????????????? * ?????????????????????? | | ???????????????????###@###############????????? | | ????????????+ ##### ! # x #????????? | | ????????????# k H % """%""" #????????? | | ????????????# x " """ #######??? | | ????????????######## # """ """ ##!!!!##?? | | ???????????????????## #; #! !#?? | | ????????????????????# %#############?# #?? | | ???????????????######% ############### ##? | | ???????? ## | | ???????? w | | ???????????##### ###;########+######### T | | ???????????????# ??? ?????# #???# | | ???????????????+???? "?????# #???# ## | | ??????????????????? "?????# #???###+###? | | ??????????????????? "?????# """ #??????????? | | ??????????????????# ?????# """ #??????????? | | ??????????????????# ??????# """ #??????????? | | ??????????????????# ??????# #??????????? | | ??????????????????+ ???????# #??????????? | | ??????????????????# ???????# #??????????? | | ??????????????????#????????# ! "T" #??????????? | | ???????????????????????????# #??????????? | | ???????????????????????????#########??????????? | | ??????????????????????????????????????????????? | | ??????????????????????????????????????????????? | +----------------------------------------------------+ Best States ------------- Heat Dissipation 31 Energy Generation 10 Energy Capacity 250 Matter Stores 247 Matter Capacity 300 Sight Range 16 Terrain Scan Range 16 Terrain Scan Density 10 Cloak Strength 5 Evasion (%) 55 Item Schematics ----------------- Hover Unit | -8/Materials | Hacked Robot Schematics ------------------ None Fabricated ------------ Nothing Alien Tech Used ----------------- None Achievements -------------- None Challenges ------------ None Game ------ Seed DeliveryFissionRedirector Manual? 0 Play Time 00:20:54 Cumulative 25.9 hours Start 2023.11.02 @ 22:38:08 End 2023.11.02 @ 22:57:35 Sessions 1 Manual Loads 0 Difficulty Rogue Special Mode None Game No. 42 Rogue 42 Adventurer 0 Explorer 0 Win Type - Total 0 Types 0/0/0/0/0/0/0/0/0 Lore% 20 Gallery% 34 Achievement% 23 Wizard Run 0 Options --------- ASCII 0 Keyboard 1 Movement Numpad Keybinds 0 Fullscreen 1 Font 18/TerminusBold Map View 76x50 Tactical HUD 1 Map Filters NONE Filters NONE Steam 1 RUN: a6f171ef-9351-4853-8021-0db311cb92df